bitfinex-derivatives/quotes_BTCF0:USTF0_20250406
["timestamp","ask_amount","ask_price","bid_price","bid_amount"]
[1743899297293,0.2648,83561.0,83560.0,1.07177158]
[1743899297497,0.2648,83561.0,83560.0,0.78642167]
[1743899297707,0.2648,83561.0,83560.0,0.53642167]
[1743899301807,0.2648,83561.0,83560.0,0.78642167]
[1743899302202,0.2648,83561.0,83560.0,0.78637656]
[1743899302903,0.2648,83561.0,83560.0,0.53637656]
[1743899303103,0.2648,83561.0,83560.0,0.79637656]
[1743899303403,0.2648,83561.0,83560.0,0.79638018]
[1743899305002,0.2648,83561.0,83560.0,0.53638018]
[1743899305607,0.2648,83561.0,83560.0,0.82638018]
[1743899305805,0.2953,83561.0,83560.0,0.82638018]
[1743899306609,0.2953,83561.0,83560.0,0.53638018]
[1743899306814,0.29642001,83561.0,83560.0,0.81638018]
[1743899307110,0.2953,83561.0,83560.0,0.81638018]
[1743899307602,0.25581978,83561.0,83560.0,0.81638018]
[1743899307807,0.25581978,83561.0,83560.0,0.88068018]
[1743899309894,0.25581978,83561.0,83560.0,0.84778018]
[1743899310099,0.25581978,83561.0,83560.0,0.79638018]
[1743899310299,0.28761978,83561.0,83560.0,0.53638018]
[1743899310499,0.28865979,83561.0,83560.0,0.77638018]
[1743899310700,0.28761978,83561.0,83560.0,0.77638018]
[1743899311208,0.28761978,83561.0,83560.0,0.53638018]
[1743899311407,0.28865979,83561.0,83560.0,0.53638018]
[1743899311608,0.28865979,83561.0,83560.0,0.80638018]
[1743899311810,0.28761978,83561.0,83560.0,0.53638018]
[1743899312005,0.28865979,83561.0,83560.0,0.53638018]
[1743899312700,0.28865979,83561.0,83560.0,0.79638018]
[1743899313003,0.28761978,83561.0,83560.0,0.79638018]
[1743899313204,0.28761978,83561.0,83560.0,0.53638018]
[1743899313406,0.28865979,83561.0,83560.0,0.53638018]
[1743899313605,0.28761978,83561.0,83560.0,0.53638018]
[1743899314205,0.28761978,83561.0,83560.0,0.53644119]
[1743899314611,0.28865979,83561.0,83560.0,0.53644119]
[1743899314814,0.28761978,83561.0,83560.0,0.53644119]
[1743899316013,0.28761978,83561.0,83560.0,0.5364238]
[1743899316512,0.28865979,83561.0,83560.0,0.5364238]
[1743899316713,0.28761978,83561.0,83560.0,0.5364238]
[1743899316914,0.28865979,83561.0,83560.0,0.5364238]
[1743899317712,0.73326269,83561.0,83560.0,0.4526199]
[1743899318109,0.73326269,83561.0,83560.0,0.43614657]
[1743899318712,0.73326269,83561.0,83560.0,0.51995047]
[1743899319817,0.73326269,83561.0,83560.0,0.51981077]
[1743899322708,0.73326269,83561.0,83560.0,0.10241077]
[1743899322909,0.73326269,83561.0,83560.0,0.10181077]
[1743899324412,0.73326269,83561.0,83560.0,0.10179291]
[1743899324727,0.73326269,83561.0,83560.0,0.01798901]
[1743899325417,0.0838039,83560.0,83559.0,0.0838047]
[1743899325619,0.08484391,83560.0,83559.0,0.01793638]
[1743899325918,0.14994391,83560.0,83559.0,0.01793638]
[1743899326222,0.51074391,83560.0,83559.0,0.01793638]
[1743899326521,0.0838049,83559.0,83558.0,0.0838057]
[1743899326722,0.0838049,83559.0,83558.0,0.1017339]
[1743899326923,0.14704491,83559.0,83558.0,0.0179282]
[1743899327323,0.0838059,83558.0,83557.0,0.0838068]
[1743899327622,0.08484591,83558.0,83557.0,0.10173837]
[1743899327825,0.14704591,83558.0,83557.0,0.10173837]
[1743899328624,0.33805591,83558.0,83557.0,0.10173837]
[1743899329123,0.33805591,83558.0,83557.0,0.10176624]
[1743899330915,0.33805591,83558.0,83557.0,0.10180043]
[1743899332825,0.33805591,83558.0,83557.0,0.10180163]
[1743899335233,0.33805591,83558.0,83557.0,0.01799483]
[1743899335729,0.083821,83543.0,83542.0,0.28196108]
[1743899336027,0.496341,83543.0,83542.0,0.19863673]
[1743899336232,0.49738101,83543.0,83542.0,0.19863673]
[1743899336622,0.75069101,83543.0,83542.0,0.19863673]
[1743899337024,0.75069101,83543.0,83542.0,0.21810665]
[1743899337631,0.75069101,83543.0,83542.0,0.21510665]
[1743899338326,0.75069101,83543.0,83542.0,0.21710665]
[1743899339534,0.75369101,83543.0,83542.0,0.21510665]
[1743899339924,0.75369101,83543.0,83542.0,0.19863673]
[1743899341234,0.75369101,83543.0,83542.0,0.01796998]
[1743899344937,0.083824,83540.0,83539.0,0.145125]
[1743899345133,0.135544,83540.0,83539.0,0.145125]
[1743899345838,0.391654,83540.0,83539.0,0.0613]
[1743899346141,0.39569401,83540.0,83539.0,0.0613]
[1743899346336,0.39569401,83540.0,83539.0,0.145125]
[1743899347249,0.31067401,83540.0,83539.0,0.145125]
[1743899347433,0.36239401,83540.0,83539.0,0.176925]
[1743899347741,0.31067401,83540.0,83539.0,0.43464943]
[1743899347936,0.19505001,83540.0,83539.0,0.47464943]
[1743899348241,0.24677001,83540.0,83539.0,0.19464943]
[1743899348432,0.24677001,83540.0,83539.0,0.45464943]
[1743899348632,0.33059401,83540.0,83539.0,0.19464943]
[1743899349036,0.33059401,83540.0,83539.0,0.44464943]
[1743899349238,0.32859401,83540.0,83539.0,0.19464943]
[1743899349444,0.33059401,83540.0,83539.0,0.19464943]
[1743899351637,0.27887401,83540.0,83539.0,0.19464943]
[1743899351838,0.33059401,83540.0,83539.0,0.19464943]
[1743899352246,0.33059401,83540.0,83539.0,0.19464648]
[1743899354040,0.33059401,83540.0,83539.0,0.1946514]
[1743899355944,0.33059401,83540.0,83539.0,0.19463776]
[1743899357550,0.24677001,83540.0,83539.0,0.19463776]
[1743899357742,0.24677001,83540.0,83539.0,0.1946599]
[1743899358443,0.22825001,83540.0,83539.0,0.1946599]
[1743899358649,0.27997001,83540.0,83539.0,0.1946599]
[1743899358854,0.27997001,83540.0,83539.0,0.4746599]
[1743899359043,0.27997001,83540.0,83539.0,0.1946599]
[1743899361244,0.27997001,83540.0,83539.0,0.176925]
[1743899361445,0.27997001,83540.0,83539.0,0.19475496]
[1743899362053,0.27997001,83540.0,83539.0,0.46475496]
[1743899362353,0.27997001,83540.0,83539.0,0.19475496]
[1743899362852,0.27997001,83540.0,83539.0,0.43475496]
[1743899363351,0.27997001,83540.0,83539.0,0.19475496]
[1743899364050,0.27997001,83540.0,83539.0,0.44475496]
[1743899364443,0.27997001,83540.0,83539.0,0.19475496]
[1743899365452,0.27997001,83540.0,83539.0,0.45122845]
[1743899366256,0.27997001,83540.0,83539.0,0.21122845]
[1743899368257,0.27997001,83540.0,83539.0,0.48122845]
[1743899368450,0.27997001,83540.0,83539.0,0.21122845]
[1743899368651,0.27997001,83540.0,83539.0,0.21149789]
[1743899370546,0.27997001,83540.0,83539.0,0.47150823]
[1743899372259,0.27997001,83540.0,83539.0,0.21150363]
[1743899372755,0.27997001,83540.0,83539.0,0.11840363]
[1743899373750,0.31317001,83540.0,83539.0,0.11840363]
[1743899374162,0.31317001,83540.0,83539.0,0.11834532]
[1743899376459,0.31317001,83540.0,83539.0,0.38834532]
[1743899376763,0.31317001,83540.0,83539.0,0.38934532]
[1743899376960,0.31317001,83540.0,83539.0,0.78274532]
[1743899377363,0.22825001,83540.0,83539.0,0.80274532]
[1743899377555,0.24677001,83540.0,83539.0,0.80274532]
[1743899377760,0.10781376,83546.0,83539.0,0.80274532]
[1743899377761,0.10781376,83546.0,83544.0,0.08382]
[1743899377959,0.10773376,83546.0,83545.0,0.19496583]
[1743899378157,0.10773376,83546.0,83545.0,0.45496583]
[1743899378463,0.10773376,83546.0,83545.0,0.47143932]
[1743899378957,0.30973376,83546.0,83545.0,0.47143932]
[1743899379557,0.30973376,83546.0,83545.0,0.47163365]
[1743899380267,0.31053376,83546.0,83545.0,0.47243365]
[1743899381161,0.20296,83546.0,83545.0,0.47243365]
[1743899381467,0.20016,83546.0,83545.0,0.47233367]
[1743899382063,0.20016,83546.0,83545.0,0.87642405]
[1743899383169,0.20016,83546.0,83545.0,0.85995056]
[1743899383361,0.20016,83546.0,83545.0,0.87650425]
[1743899383758,0.20016,83546.0,83545.0,0.52340425]
[1743899384068,0.20088,83546.0,83545.0,0.76340425]
[1743899384271,0.25188,83546.0,83545.0,0.76340425]
[1743899384568,0.2526,83546.0,83545.0,0.76340425]
[1743899385169,0.2526,83546.0,83545.0,0.76337275]
[1743899386068,0.25188,83546.0,83545.0,0.76337275]
[1743899387072,0.25188,83546.0,83545.0,0.76337271]
[1743899388076,0.25188,83546.0,83545.0,0.76337098]
[1743899389775,0.25188,83546.0,83545.0,0.79337098]
[1743899390176,0.25188,83546.0,83545.0,0.82417098]
[1743899391075,0.20016,83546.0,83545.0,0.82417098]
[1743899391272,0.25188,83546.0,83545.0,0.82417098]
[1743899393275,0.25188,83546.0,83545.0,0.80337098]
[1743899393670,0.25188,83546.0,83545.0,0.52337098]
[1743899393870,0.2526,83546.0,83545.0,0.80337098]
[1743899394074,0.25188,83546.0,83545.0,0.52337098]
[1743899394371,0.25272,83546.0,83545.0,0.77358485]
[1743899394879,0.25188,83546.0,83545.0,0.77358485]
[1743899395676,0.25188,83546.0,83545.0,0.52358485]
[1743899395976,0.2526,83546.0,83545.0,0.75358485]
[1743899396166,0.2526,83546.0,83545.0,0.75359291]
[1743899396780,0.3136,83546.0,83545.0,0.52359291]
[1743899397084,0.31288,83546.0,83545.0,0.77359291]
[1743899397983,0.3136,83546.0,83545.0,0.77359291]
[1743899398782,0.3136,83546.0,83545.0,0.75359291]
[1743899399887,0.3136,83546.0,83545.0,1.03891841]
[1743899400087,0.31288,83546.0,83545.0,1.03891841]
[1743899400577,0.26116,83546.0,83545.0,1.07171841]
[1743899400776,0.31288,83546.0,83545.0,1.07171841]
[1743899402088,0.31288,83546.0,83545.0,1.03891841]
[1743899403795,0.31288,83546.0,83545.0,0.75359291]
[1743899404688,0.31288,83546.0,83545.0,0.75358759]
[1743899404996,0.31288,83546.0,83545.0,0.52358759]
[1743899405193,0.3136,83546.0,83545.0,0.52358759]
[1743899410298,0.3136,83546.0,83545.0,0.52358895]
[1743899410903,0.397418,83546.0,83545.0,0.52358895]
[1743899411102,0.430018,83546.0,83545.0,0.52358895]
[1743899413795,0.430018,83546.0,83545.0,0.52366138]
[1743899417209,0.430018,83546.0,83545.0,0.119571]
[1743899417401,0.430018,83546.0,83545.0,0.11950686]
[1743899419210,0.430018,83546.0,83545.0,0.11947527]
[1743899419713,0.790818,83546.0,83545.0,0.11947527]
[1743899420512,0.430018,83546.0,83545.0,0.11947527]
[1743899420709,0.790818,83546.0,83545.0,0.11947527]
[1743899421009,0.790818,83546.0,83545.0,0.11951243]
[1743899422913,0.790818,83546.0,83545.0,0.11871243]
[1743899424910,0.790818,83546.0,83545.0,0.03489343]
[1743899427906,0.790818,83546.0,83545.0,0.04877386]
[1743899429710,0.790818,83546.0,83545.0,0.04889537]
[1743899430604,0.083823,83541.0,83540.0,8e-05]
[1743899430814,0.084543,83541.0,83540.0,0.00068]
[1743899431017,0.083826,83538.0,83535.0,0.00059855]
[1743899431317,0.084546,83538.0,83537.0,0.0006]
[1743899431913,0.145946,83538.0,83537.0,0.0006]
[1743899432108,0.083828,83536.0,83535.0,0.00059855]
[1743899432313,0.084628,83536.0,83535.0,0.00127855]
[1743899433113,0.084628,83536.0,83535.0,0.01004681]
[1743899433312,0.084628,83536.0,83535.0,0.01104681]
[1743899433511,0.302588,83536.0,83535.0,0.01104681]
[1743899434212,0.302588,83536.0,83535.0,0.01004681]
[1743899435712,0.303588,83536.0,83535.0,0.01004681]
[1743899436323,0.304588,83536.0,83535.0,0.01004681]
[1743899437113,0.041916,83533.0,83530.0,0.1616]
[1743899437314,0.444633,83531.0,83530.0,0.1616]
[1743899437515,0.36152,83531.0,83518.0,0.27274969]
[1743899437715,0.4446451,83519.0,83518.0,0.25524546]
[1743899437911,0.4970851,83519.0,83518.0,0.25524546]
[1743899438724,0.5582851,83519.0,83518.0,0.25524546]
[1743899439424,0.5592851,83519.0,83518.0,0.25524546]
[1743899439625,0.5602851,83519.0,83518.0,0.25524546]
[1743899439826,0.5602851,83519.0,83518.0,0.26405466]
[1743899440025,0.7085651,83519.0,83518.0,0.26405466]
[1743899440221,0.7602851,83519.0,83518.0,0.26405466]
[1743899441221,0.77236888,83519.0,83518.0,0.0094092]
[1743899441422,1.29936378,83519.0,83499.0,0.40468919]
[1743899441723,1.29936378,83519.0,83509.0,8e-05]
[1743899441724,0.17414529,83510.0,83509.0,8e-05]
[1743899441926,0.0838581,83507.0,83506.0,0.083858]
[1743899442128,0.0845781,83507.0,83506.0,0.084658]
[1743899442321,0.1498781,83507.0,83506.0,0.084658]
[1743899442722,0.3498781,83507.0,83506.0,0.10295762]
[1743899443021,0.3498781,83507.0,83506.0,0.01909962]
[1743899443323,0.3498781,83507.0,83506.0,0.12874478]
[1743899443527,0.3498781,83507.0,83506.0,0.13134478]
[1743899444812,0.3498781,83507.0,83506.0,0.13120808]
[1743899445020,0.7106781,83507.0,83506.0,0.13120808]
[1743899445231,0.7106781,83507.0,83506.0,0.13060808]
[1743899445823,0.7106781,83507.0,83506.0,0.13052808]
[1743899446024,0.7106781,83507.0,83506.0,0.13112808]
[1743899446524,0.7106781,83507.0,83506.0,0.04726998]
[1743899446720,0.7106781,83507.0,83506.0,0.04666998]
[1743899446920,0.7106781,83507.0,83506.0,0.04726998]
[1743899448026,0.0838641,83500.0,83499.0,0.40468919]
[1743899448231,0.4971041,83500.0,83499.0,0.01867123]
[1743899448729,0.5601041,83500.0,83499.0,0.01867123]
[1743899449116,0.5601041,83500.0,83499.0,0.01871123]
[1743899449321,0.5661041,83500.0,83499.0,0.01871123]
[1743899449630,0.0838672,83497.0,83496.0,0.1161679]
[1743899449929,0.0846672,83497.0,83496.0,0.1168479]
[1743899450625,0.1476672,83497.0,83496.0,0.1484479]
[1743899450821,0.1476672,83497.0,83496.0,0.15746787]
[1743899451021,0.1993872,83497.0,83496.0,0.15746787]
[1743899451222,0.3993872,83497.0,83496.0,0.15746787]
[1743899451423,0.3526672,83497.0,83496.0,0.15846787]
[1743899451728,0.4043872,83497.0,83496.0,0.15846787]
[1743899452231,0.4093872,83497.0,83496.0,0.15846787]
[1743899452535,0.4043872,83497.0,83496.0,0.15846787]
[1743899452830,0.4093872,83497.0,83496.0,0.15746787]
[1743899455228,0.4093872,83497.0,83496.0,0.07359997]
[1743899455528,0.4093872,83497.0,83496.0,0.04199997]
[1743899455729,0.4093872,83497.0,83496.0,0.00901997]
[1743899455925,0.4093872,83497.0,83491.0,0.00017961]
[1743899455926,0.0838722,83492.0,83491.0,0.00017961]
[1743899456131,0.4453922,83492.0,83491.0,0.00077961]
[1743899456321,0.4453922,83492.0,83491.0,0.03117961]
[1743899456524,0.4453922,83492.0,83491.0,0.11505281]
[1743899456728,0.4971122,83492.0,83491.0,0.11505281]
[1743899456928,0.5623122,83492.0,83491.0,0.11505281]
[1743899457133,0.7623122,83492.0,83491.0,0.11505281]
[1743899457633,0.7105922,83492.0,83491.0,0.11505281]
[1743899457828,0.7623122,83492.0,83491.0,0.11505281]
[1743899458023,0.7703122,83492.0,83491.0,0.04006862]
[1743899458225,0.7703122,83492.0,83491.0,0.12394182]
[1743899458629,0.7703122,83492.0,83491.0,0.04006862]
[1743899459032,0.7703122,83492.0,83491.0,0.12394182]
[1743899459343,0.7703122,83492.0,83491.0,0.04006862]
[1743899460431,0.7703122,83492.0,83491.0,0.05661509]
[1743899461331,0.0838772,83487.0,83486.0,0.0838772]
[1743899461537,0.0845972,83487.0,83486.0,0.14139615]
[1743899461835,0.0845972,83487.0,83486.0,0.05819895]
[1743899462032,0.2845972,83487.0,83486.0,0.14199715]
[1743899462336,0.3473972,83487.0,83486.0,0.14199808]
[1743899462537,0.3503972,83487.0,83486.0,0.14139808]
[1743899462838,0.3503972,83487.0,83486.0,0.11079808]
[1743899463732,0.3503972,83487.0,83486.0,0.14169808]
[1743899463939,0.4021172,83487.0,83486.0,0.14169808]
[1743899464437,0.4041172,83487.0,83486.0,0.14169808]
[1743899467636,0.3523972,83487.0,83486.0,0.14169808]
[1743899467844,0.3738172,83487.0,83486.0,0.14241808]
[1743899468044,0.3738172,83487.0,83486.0,0.14169808]
[1743899468045,0.28994,83487.0,83486.0,0.14169808]
[1743899468540,0.3738172,83487.0,83486.0,0.14169808]
[1743899469139,0.3718172,83487.0,83486.0,0.14169808]
[1743899469437,0.3738172,83487.0,83486.0,0.14169808]
[1743899469843,0.20572,83487.0,83486.0,0.14169808]
[1743899470140,0.20572,83487.0,83486.0,0.14233808]
[1743899470345,0.25744,83487.0,83486.0,0.42233808]
[1743899470732,0.25544,83487.0,83486.0,0.14233808]
[1743899470933,0.25744,83487.0,83486.0,0.14233808]
[1743899471332,0.25744,83487.0,83486.0,0.14242442]
[1743899471537,0.25544,83487.0,83486.0,0.14242442]
[1743899471736,0.20372,83487.0,83486.0,0.14242442]
[1743899472233,0.20072,83487.0,83486.0,0.14242442]
[1743899472948,0.20072,83487.0,83486.0,0.5465148]
[1743899473146,0.2,83487.0,83486.0,0.5465148]
[1743899474246,0.2,83487.0,83486.0,0.56310546]
[1743899475041,0.23272,83487.0,83486.0,0.56310546]
[1743899475437,0.28444,83487.0,83486.0,0.56310546]
[1743899476846,0.28444,83487.0,83486.0,0.56312445]
[1743899478554,0.28444,83487.0,83486.0,0.56317445]
[1743899482149,0.28444,83487.0,83486.0,0.54489926]
[1743899482351,0.28444,83487.0,83486.0,0.5632032]
[1743899482855,0.28544,83487.0,83486.0,0.5632032]
[1743899483853,0.28444,83487.0,83486.0,0.5632032]
[1743899484056,0.28544,83487.0,83486.0,0.56311224]
[1743899484558,0.28644,83487.0,83486.0,0.56311224]
[1743899485560,0.28744,83487.0,83486.0,0.54652158]
[1743899485860,0.28744,83487.0,83486.0,0.51562158]
[1743899489258,0.28744,83487.0,83486.0,0.54712158]
[1743899489662,0.28744,83487.0,83486.0,0.56361734]
[1743899489870,0.28744,83487.0,83486.0,0.53211734]
[1743899490762,0.28744,83487.0,83486.0,0.51562158]
[1743899491753,0.31934,83487.0,83486.0,0.51562158]
[1743899492363,0.31934,83487.0,83486.0,0.53211722]
[1743899492758,0.4032172,83487.0,83486.0,0.53211722]
[1743899493158,0.4032172,83487.0,83486.0,0.53208545]
[1743899493666,0.4032172,83487.0,83486.0,0.53210478]
[1743899495655,0.4032172,83487.0,83486.0,0.44822658]
[1743899495867,0.4032172,83487.0,83486.0,0.53210478]
[1743899496265,0.4032172,83487.0,83486.0,0.1280144]
[1743899496568,0.4032172,83487.0,83486.0,0.0441362]
[1743899496770,0.4032172,83487.0,83486.0,0.10981386]
[1743899496958,0.4032172,83487.0,83486.0,0.12806286]
[1743899498360,0.4032172,83487.0,83486.0,0.04418466]
[1743899498556,0.4032172,83487.0,83486.0,0.02593566]
[1743899498768,0.4032172,83487.0,83486.0,0.04415667]
[1743899499769,0.4032172,83487.0,83486.0,0.02766103]
[1743899499969,0.4032172,83487.0,83486.0,0.02702103]
[1743899500170,0.5107675,83487.0,83486.0,0.02702103]
[1743899500573,0.0838792,83485.0,83484.0,8e-05]
[1743899500757,0.0846792,83485.0,83484.0,8e-05]
[1743899500962,0.0846792,83485.0,83484.0,0.00888019]
[1743899501473,0.0846792,83485.0,83484.0,0.02530064]
[1743899501669,0.2846792,83485.0,83484.0,0.02530064]
[1743899502672,0.2856792,83485.0,83484.0,0.02530064]
[1743899502874,0.2856792,83485.0,83484.0,0.00880019]
[1743899503074,0.0838812,83483.0,83482.0,8e-05]
[1743899503271,0.4454812,83483.0,83482.0,8e-05]
[1743899503670,0.5060812,83483.0,83482.0,8e-05]
[1743899504277,0.5070812,83483.0,83482.0,8e-05]
[1743899504469,0.7070812,83483.0,83482.0,8e-05]
[1743899504877,0.0838852,83479.0,83478.0,0.00012019]
[1743899505080,0.0846052,83479.0,83478.0,0.00092019]
[1743899505574,0.0846052,83479.0,83478.0,0.00986332]
[1743899505976,0.1480052,83479.0,83478.0,0.01086332]
[1743899506280,0.3480052,83479.0,83478.0,0.01086332]
[1743899506679,0.7088052,83479.0,83478.0,0.01086332]
[1743899506871,0.7088052,83479.0,83478.0,0.01006332]
[1743899507984,0.7108052,83479.0,83478.0,0.01006332]
[1743899508173,0.7108052,83479.0,83478.0,0.02654435]
[1743899509184,0.7108052,83479.0,83478.0,0.02554435]
[1743899509494,0.7118052,83479.0,83478.0,0.02554435]
[1743899510001,0.7635252,83479.0,83478.0,0.02554435]
[1743899512493,0.7635252,83479.0,83478.0,0.04367318]
[1743899515095,0.0419431,83478.0,83471.0,8e-05]
[1743899515295,0.0838973,83467.0,83466.0,8e-05]
[1743899515599,0.0846973,83467.0,83466.0,8e-05]
[1743899515897,0.0846973,83467.0,83466.0,0.0845783]
[1743899516396,0.3496973,83467.0,83466.0,0.0865783]
[1743899516698,0.3496973,83467.0,83466.0,0.0875783]
[1743899517504,0.3496973,83467.0,83466.0,0.0127838]
[1743899517996,0.3496973,83467.0,83466.0,0.0121838]
[1743899518198,0.3496973,83467.0,83466.0,0.0127838]
[1743899518397,0.3496973,83467.0,83466.0,0.0121038]
[1743899518600,0.3496973,83467.0,83466.0,0.0127038]
[1743899520299,0.3496973,83467.0,83466.0,0.0107038]
[1743899520494,0.3496973,83467.0,83466.0,0.0121038]
[1743899521193,0.3496973,83467.0,83466.0,0.0960021]
[1743899521499,0.2008,83467.0,83466.0,0.0967221]
[1743899521703,0.25252,83467.0,83466.0,0.0967221]
[1743899521888,0.2008,83467.0,83466.0,0.0967221]
[1743899522093,0.2008,83467.0,83466.0,0.3367221]
[1743899522299,0.25252,83467.0,83466.0,0.35060195]
[1743899522803,0.25252,83467.0,83466.0,0.51469233]
[1743899523603,0.25252,83467.0,83466.0,0.51469706]
[1743899526294,0.25252,83467.0,83466.0,0.50081248]
[1743899527298,0.25252,83467.0,83466.0,0.5193275]
[1743899527505,0.25252,83467.0,83466.0,0.5361329]
[1743899527803,0.25252,83467.0,83466.0,0.6003329]
[1743899528499,0.3364173,83467.0,83466.0,0.6003329]
[1743899532508,0.2846973,83467.0,83466.0,0.6003329]
[1743899532707,0.3364173,83467.0,83466.0,0.6003329]
[1743899534409,0.3364173,83467.0,83466.0,0.60047381]
[1743899535108,0.4001173,83467.0,83466.0,0.51657551]
[1743899535301,0.4001173,83467.0,83466.0,0.60047381]
[1743899536007,0.3681173,83467.0,83466.0,0.60047381]
[1743899536212,0.3681173,83467.0,83466.0,0.60047588]
[1743899536406,0.3681173,83467.0,83466.0,0.6144157]
[1743899536810,0.3364173,83467.0,83466.0,0.6144157]
[1743899537912,0.3992173,83467.0,83466.0,0.5502157]
[1743899538298,0.39322327,83467.0,83466.0,0.5809157]
[1743899538500,0.39322327,83467.0,83466.0,0.5502157]
[1743899539316,0.39322327,83467.0,83466.0,0.55028963]
[1743899539803,0.39322327,83467.0,83466.0,0.55034625]
[1743899540515,0.39390327,83467.0,83466.0,0.55034625]
[1743899541607,0.39390327,83467.0,83466.0,0.53161434]
[1743899541915,0.39390327,83467.0,83466.0,0.5503464]
[1743899542513,0.75470327,83467.0,83466.0,0.5503464]
[1743899542903,0.75470327,83467.0,83466.0,0.5815464]
[1743899543415,0.75470327,83467.0,83466.0,0.5503464]
[1743899543614,0.75470327,83467.0,83466.0,0.55033974]
[1743899544515,0.75470327,83467.0,83466.0,0.58153974]
[1743899544821,0.74571203,83467.0,83466.0,0.58153974]
[1743899545514,0.74571203,83467.0,83466.0,0.5816061]
[1743899545819,0.74571203,83467.0,83466.0,0.5504061]
[1743899547112,0.74571203,83467.0,83466.0,0.550406]
[1743899547310,0.74571203,83467.0,83466.0,0.4665077]
[1743899547912,0.0839114,83453.0,83443.0,0.30733768]
[1743899548107,0.8574314,83453.0,83452.0,0.42728037]
[1743899548315,0.8581114,83453.0,83452.0,0.42728037]
[1743899548507,0.05264,83453.0,83452.0,1.12115406]
[1743899548708,0.08376,83453.0,83452.0,0.33367369]
[1743899549006,0.3628,83467.0,83460.0,0.0839043]
[1743899549211,0.05285972,83461.0,83460.0,0.0845443]
[1743899549906,0.25285972,83461.0,83460.0,0.42458198]
[1743899550219,0.20085972,83461.0,83460.0,0.64458198]
[1743899550421,0.20085972,83461.0,83460.0,0.67668198]
[1743899550625,2e-08,83461.0,83460.0,0.67668198]
[1743899551108,0.19591532,83478.0,83472.0,0.0838923]
[1743899551311,0.08287812,83478.0,83477.0,0.0838872]
[1743899551522,0.08287812,83478.0,83477.0,0.0845672]
[1743899552209,0.00272,83478.0,83477.0,0.1460672]
[1743899553016,0.2866062,83478.0,83477.0,0.0845672]
[1743899553415,0.28261302,83478.0,83477.0,0.0845672]
[1743899553709,0.28349303,83478.0,83477.0,0.0845672]
[1743899554015,0.31509303,83478.0,83477.0,0.0845672]
[1743899554222,0.34509303,83478.0,83477.0,0.0845672]
[1743899555521,0.34509303,83478.0,83477.0,0.00068]
[1743899559116,0.0838903,83474.0,83473.0,0.30733768]
[1743899559424,0.0838903,83474.0,83473.0,0.30821768]
[1743899560018,0.34411031,83474.0,83473.0,0.34062458]
[1743899560218,0.70491031,83474.0,83473.0,0.35796843]
[1743899560414,0.70591031,83474.0,83473.0,0.35796843]
[1743899560824,0.70591031,83474.0,83473.0,0.05063075]
[1743899561027,0.70591031,83474.0,83473.0,0.04975075]
[1743899561233,0.70791031,83474.0,83473.0,0.04975075]
[1743899561526,0.70791031,83474.0,83473.0,0.04975326]
[1743899561728,0.70891031,83474.0,83473.0,0.04975326]
[1743899561922,0.0838943,83470.0,83469.0,0.00017972]
[1743899562123,0.13689431,83470.0,83469.0,0.01861665]
[1743899562424,0.49769431,83470.0,83469.0,0.01861665]
[1743899562828,0.75701431,83470.0,83469.0,0.01861665]
[1743899563220,0.75701431,83470.0,83469.0,0.00017972]
[1743899563422,0.75901431,83470.0,83469.0,0.00017972]
[1743899563628,0.76101431,83470.0,83469.0,0.00017972]
[1743899564223,0.75901431,83470.0,83469.0,0.00017972]
[1743899564425,0.76301431,83470.0,83469.0,0.00017972]
[1743899565127,0.76101431,83470.0,83469.0,0.00017972]
[1743899565429,0.76501431,83470.0,83469.0,0.00017972]
[1743899573626,0.78301432,83470.0,83469.0,0.00017972]
[1743899573833,0.0419506,83464.0,83459.0,0.0839052]
[1743899574035,0.4447043,83460.0,83459.0,0.1170838]
[1743899574336,0.44566431,83460.0,83459.0,0.15347067]
[1743899574923,0.50806431,83460.0,83459.0,0.15347067]
[1743899575126,0.70478431,83460.0,83459.0,0.15347067]
[1743899575331,0.70578431,83460.0,83459.0,0.15347067]
[1743899577942,0.70778431,83460.0,83459.0,0.15347067]
[1743899579738,0.70778431,83460.0,83459.0,0.15343059]
[1743899580738,0.70778431,83460.0,83459.0,0.06952679]
[1743899580945,0.0839114,83453.0,83452.0,0.09307269]
[1743899581144,0.1359514,83453.0,83452.0,0.09307269]
[1743899581329,0.2280514,83453.0,83452.0,0.17698419]
[1743899582140,0.4247714,83453.0,83452.0,0.17698419]
[1743899582645,0.7855714,83453.0,83452.0,0.17698419]
[1743899584842,0.74897617,83453.0,83452.0,0.17698419]
[1743899585042,0.74961617,83453.0,83452.0,0.17762419]
[1743899585247,0.71891617,83453.0,83452.0,0.24222419]
[1743899585756,0.715638,83453.0,83452.0,0.24222419]
[1743899586137,0.72751096,83453.0,83452.0,0.24222419]
[1743899588159,0.72751096,83453.0,83452.0,0.21002419]
[1743899591351,0.67547096,83453.0,83452.0,0.21002419]
[1743899591552,0.72751096,83453.0,83452.0,0.21002419]
[1743899591865,0.57003296,83453.0,83452.0,0.21002419]
[1743899592058,0.62511296,83453.0,83452.0,0.21002419]
[1743899592258,0.62811296,83453.0,83452.0,0.21002419]
[1743899592858,0.62811296,83453.0,83452.0,0.22818181]
[1743899593059,0.26731296,83453.0,83452.0,0.24521474]
[1743899593561,0.26231296,83453.0,83452.0,0.24521474]
[1743899593763,0.26331296,83453.0,83452.0,0.24521474]
[1743899594157,0.19936,83453.0,83452.0,1.00601474]
[1743899594357,0.6952195,83465.0,83462.0,0.0839023]
[1743899594561,0.41348001,83463.0,83462.0,0.10205992]
[1743899594762,0.41348001,83463.0,83462.0,0.10285992]
[1743899595057,0.41348001,83463.0,83462.0,0.11989285]
[1743899595262,0.41348001,83463.0,83462.0,0.18179285]
[1743899595560,0.36140001,83463.0,83462.0,0.18179285]
[1743899595765,0.41348001,83463.0,83462.0,0.18179285]
[1743899595967,0.69938131,83463.0,83462.0,0.15079285]
[1743899596456,0.69938131,83463.0,83462.0,0.11989285]
[1743899596764,0.76068131,83463.0,83462.0,0.03599055]
[1743899596966,0.76068131,83463.0,83462.0,0.11989285]
[1743899597160,0.76068131,83463.0,83462.0,0.01703293]
[1743899597467,0.0839094,83455.0,83454.0,0.08391]
[1743899597659,0.4447094,83455.0,83454.0,0.08391]
[1743899598558,0.6447094,83455.0,83454.0,0.08391]
[1743899599363,0.0839114,83453.0,83452.0,0.09307299]
[1743899599559,0.0839114,83453.0,83452.0,0.0839117]
[1743899599959,0.1483114,83453.0,83452.0,0.0839117]
[1743899600159,0.34891141,83453.0,83452.0,0.0845117]
[1743899601267,0.70971141,83453.0,83452.0,0.0845117]
[1743899601866,0.71471141,83453.0,83452.0,0.0845117]
[1743899602168,0.71471141,83453.0,83452.0,0.09355804]
[1743899602669,0.71971141,83453.0,83452.0,0.09355804]
[1743899609269,0.71971141,83453.0,83452.0,0.11149258]
[1743899609669,0.71971141,83453.0,83452.0,0.12833893]
[1743899609870,0.71971141,83453.0,83452.0,0.12773893]
[1743899610270,0.77167141,83453.0,83452.0,0.16043893]